bitfinex/quotes_BTCUSD_20250614
["timestamp","ask_amount","ask_price","bid_price","bid_amount"]
[1749882515374,1.15324057,105240.0,105230.0,0.0521142]
[1749882515578,1.15324057,105240.0,105230.0,0.07661795]
[1749882516392,1.15324057,105240.0,105230.0,0.05879704]
[1749882516596,1.15324057,105240.0,105230.0,0.06993511]
[1749882516797,1.15324057,105240.0,105230.0,0.07661795]
[1749882516990,1.15324057,105240.0,105230.0,0.06993511]
[1749882517499,0.39718389,105240.0,105230.0,0.30693251]
[1749882517706,0.73242266,105240.0,105230.0,0.25835947]
[1749882517869,0.88898266,105240.0,105230.0,0.26949673]
[1749882518277,0.88898266,105240.0,105230.0,0.27617892]
[1749882518483,0.88898266,105240.0,105230.0,0.26949651]
[1749882518640,0.69134266,105240.0,105230.0,0.25167696]
[1749882518966,0.88898266,105240.0,105230.0,0.25167696]
[1749882519160,0.88898266,105240.0,105230.0,0.27617884]
[1749882519354,0.88898266,105240.0,105230.0,0.25167696]
[1749882519554,0.88898266,105240.0,105230.0,0.25835929]
[1749882519773,0.88898266,105240.0,105230.0,0.27617884]
[1749882519962,0.88898266,105240.0,105230.0,0.27617883]
[1749882520164,0.88898266,105240.0,105230.0,0.2694965]
[1749882520605,0.88898266,105240.0,105230.0,0.27617882]
[1749882522037,0.88898266,105240.0,105230.0,0.2694965]
[1749882522343,0.88898266,105240.0,105230.0,0.27617882]
[1749882523313,1.46270266,105240.0,105230.0,0.27617883]
[1749882523518,1.46270266,105240.0,105230.0,0.27617884]
[1749882524678,1.46270266,105240.0,105230.0,0.27617881]
[1749882524905,1.46270266,105240.0,105230.0,0.27617875]
[1749882525200,1.46270266,105240.0,105230.0,0.26667585]
[1749882526082,1.46270266,105240.0,105230.0,0.26667586]
[1749882526291,1.46270266,105240.0,105230.0,0.24885637]
[1749882526467,1.46270266,105240.0,105230.0,0.25999356]
[1749882526697,1.46270266,105240.0,105230.0,0.26667587]
[1749882526904,1.46270266,105240.0,105230.0,0.26667588]
[1749882527543,1.46270266,105240.0,105230.0,0.26667587]
[1749882528570,1.46270266,105240.0,105230.0,0.26666205]
[1749882528773,1.46270266,105240.0,105230.0,0.24217406]
[1749882529220,1.46270266,105240.0,105230.0,0.26666205]
[1749882529897,1.46270266,105240.0,105230.0,0.07660219]
[1749882530783,1.46270266,105240.0,105230.0,0.07660064]
[1749882531019,1.46270266,105240.0,105230.0,0.05879216]
[1749882531408,1.46270266,105240.0,105230.0,0.07660007]
[1749882531633,1.46270266,105240.0,105230.0,0.07660008]
[1749882531823,1.46270266,105240.0,105230.0,0.0521142]
[1749882532029,1.46270266,105240.0,105230.0,0.07660007]
[1749882532233,1.46270266,105240.0,105230.0,0.06992211]
[1749882532438,1.46270266,105240.0,105230.0,0.05879216]
[1749882532669,1.46270266,105240.0,105230.0,0.07660007]
[1749882533799,1.46270266,105240.0,105230.0,0.06992211]
[1749882534006,1.46270266,105240.0,105230.0,0.07660007]
[1749882534184,1.46270266,105240.0,105230.0,0.0521142]
[1749882534418,1.46270266,105240.0,105230.0,0.07660007]
[1749882536099,1.46270266,105240.0,105230.0,0.06992211]
[1749882536311,1.46270266,105240.0,105230.0,0.0521142]
[1749882536512,1.46270266,105240.0,105230.0,0.07660007]
[1749882537227,1.46270266,105240.0,105230.0,0.05879216]
[1749882537426,1.46270266,105240.0,105230.0,0.07660007]
[1749882537632,1.46270266,105240.0,105230.0,0.0765992]
[1749882537844,1.46270266,105240.0,105230.0,0.06991979]
[1749882538181,1.46270266,105240.0,105230.0,0.0521142]
[1749882538403,1.46270266,105240.0,105230.0,0.05879232]
[1749882538610,1.46270266,105240.0,105230.0,0.06992254]
[1749882539204,1.46270266,105240.0,105230.0,0.0521142]
[1749882539428,1.46270266,105240.0,105230.0,0.07660066]
[1749882539627,1.46270266,105240.0,105230.0,0.05879232]
[1749882540063,1.46270266,105240.0,105230.0,0.0521142]
[1749882540277,1.46270266,105240.0,105230.0,0.06992253]
[1749882540496,1.46270266,105240.0,105230.0,0.0521142]
[1749882540925,1.46270266,105240.0,105230.0,0.05879232]
[1749882541125,1.46270266,105240.0,105230.0,0.07660066]
[1749882541556,1.46270266,105240.0,105230.0,0.0521142]
[1749882541766,0.97090389,105240.0,105230.0,0.07660115]
[1749882541938,1.26506266,105240.0,105230.0,0.06992289]
[1749882542141,1.46250266,105240.0,105230.0,0.0521142]
[1749882542282,1.46250266,105240.0,105230.0,0.07660115]
[1749882542511,1.46250266,105240.0,105230.0,0.05879246]
[1749882542927,1.46250266,105240.0,105230.0,0.0521142]
[1749882543358,1.46250266,105240.0,105230.0,0.07660115]
[1749882543774,1.46250266,105240.0,105230.0,0.06992289]
[1749882544379,1.46250266,105240.0,105230.0,0.07660115]
[1749882545222,1.46250266,105240.0,105230.0,0.07660114]
[1749882545452,1.46250266,105240.0,105230.0,0.07660113]
[1749882545910,0.97070389,105240.0,105230.0,0.07660113]
[1749882546139,1.46250266,105240.0,105230.0,0.07660113]
[1749882546491,1.46250266,105240.0,105230.0,0.06992288]
[1749882546717,1.46250266,105240.0,105230.0,0.07660113]
[1749882547322,1.46250266,105240.0,105230.0,0.07661719]
[1749882547526,1.46250266,105240.0,105230.0,0.0521142]
[1749882547740,1.46250266,105240.0,105230.0,0.07661719]
[1749882547946,1.46250266,105240.0,105230.0,0.06993456]
[1749882548183,1.46250266,105240.0,105230.0,0.07661719]
[1749882548581,1.46250266,105240.0,105230.0,0.08329982]
[1749882548994,1.46250266,105240.0,105230.0,0.06547946]
[1749882549225,1.46250266,105240.0,105230.0,0.08329982]
[1749882549796,1.95430143,105240.0,105230.0,0.05879683]
[1749882550079,1.95430143,105240.0,105230.0,0.08330015]
[1749882550275,1.95430143,105240.0,105230.0,0.08330029]
[1749882550491,1.95430143,105240.0,105230.0,0.08330041]
[1749882550684,1.95430143,105240.0,105230.0,0.08330042]
[1749882550905,1.95430143,105240.0,105230.0,0.08330043]
[1749882551757,1.46250266,105240.0,105230.0,0.07661763]
[1749882551983,1.46250266,105240.0,105230.0,0.08330043]
[1749882552186,0.97070389,105240.0,105230.0,0.08330043]
[1749882552387,1.46250266,105240.0,105230.0,0.07661763]
[1749882552633,1.46250266,105240.0,105230.0,0.0833004]
[1749882552799,1.46250266,105240.0,105230.0,0.05879683]
[1749882553021,1.46250266,105240.0,105230.0,0.08330041]
[1749882553206,1.46250266,105240.0,105230.0,0.07661762]
[1749882553405,1.46250266,105240.0,105230.0,0.08330041]
[1749882554063,1.46250266,105240.0,105230.0,0.06547962]
[1749882554269,1.46250266,105240.0,105230.0,0.08330041]
[1749882554780,1.46250266,105240.0,105230.0,0.07661762]
[1749882555220,1.46250266,105240.0,105230.0,0.08330041]
[1749882555427,1.46250266,105240.0,105230.0,0.07661762]
[1749882555646,1.46250266,105240.0,105230.0,0.08330041]
[1749882556506,1.46250266,105240.0,105230.0,0.08328569]
[1749882556674,1.46250266,105240.0,105230.0,0.07660691]
[1749882556888,1.46250266,105240.0,105230.0,0.08328568]
[1749882557868,1.46250266,105240.0,105230.0,0.08328567]
[1749882558277,1.46250266,105240.0,105230.0,0.08328574]
[1749882558477,1.46212399,105240.0,105230.0,0.07660702]
[1749882558706,1.46212399,105240.0,105230.0,0.08328584]
[1749882559119,1.46212399,105240.0,105230.0,0.06547565]
[1749882559518,1.46212399,105240.0,105230.0,0.08328584]
[1749882559724,1.46212399,105240.0,105230.0,0.07660702]
[1749882559933,1.46212399,105240.0,105230.0,0.08328584]
[1749882560165,1.46212399,105240.0,105230.0,0.07660702]
[1749882560358,1.46212399,105240.0,105230.0,0.05879683]
[1749882560559,1.46212399,105240.0,105230.0,0.08328584]
[1749882560987,1.46212399,105240.0,105230.0,0.05879683]
[1749882561198,1.46212399,105240.0,105230.0,0.08328584]
[1749882561410,1.46212399,105240.0,105230.0,0.07660702]
[1749882561628,1.46212399,105240.0,105230.0,0.08328584]
[1749882562197,1.46212399,105240.0,105230.0,0.05879683]
[1749882562407,1.46212399,105240.0,105230.0,0.08328584]
[1749882562776,1.46212399,105240.0,105230.0,0.05879683]
[1749882562978,1.46212399,105240.0,105230.0,0.08328584]
[1749882563181,1.46212399,105240.0,105230.0,0.07660702]
[1749882563698,1.46212399,105240.0,105230.0,0.06547565]
[1749882563848,1.46212399,105240.0,105230.0,0.08328584]
[1749882564267,1.46212399,105240.0,105230.0,0.06547565]
[1749882564482,1.46212399,105240.0,105230.0,0.08328584]
[1749882565957,1.46212399,105240.0,105230.0,0.06547565]
[1749882566162,1.46212399,105240.0,105230.0,0.07660702]
[1749882566329,1.46212399,105240.0,105230.0,0.08328584]
[1749882567337,1.46212399,105240.0,105230.0,0.06547565]
[1749882567540,1.46212399,105240.0,105230.0,0.08328584]
[1749882568006,1.46212399,105240.0,105230.0,0.08329649]
[1749882568845,1.46212399,105240.0,105230.0,0.08330048]
[1749882569346,1.46212399,105240.0,105230.0,0.07661767]
[1749882569564,1.46212399,105240.0,105230.0,0.06547964]
[1749882569801,1.46212399,105240.0,105230.0,0.05879683]
[1749882570000,1.46212399,105240.0,105230.0,0.06547964]
[1749882570203,1.46212399,105240.0,105230.0,0.08330051]
[1749882570414,1.46212399,105240.0,105230.0,0.06547965]
[1749882570623,1.46212399,105240.0,105230.0,0.08330052]
[1749882571650,1.46212399,105240.0,105230.0,0.06547965]
[1749882571835,1.46212399,105240.0,105230.0,0.0766177]
[1749882572048,1.46212399,105240.0,105230.0,0.05879683]
[1749882572407,1.46212399,105240.0,105230.0,0.08330052]
[1749882572613,1.46212399,105240.0,105230.0,0.0766177]
[1749882572856,1.46212399,105240.0,105230.0,0.08330052]
[1749882573098,1.46212399,105240.0,105230.0,0.06547965]
[1749882573240,1.46212399,105240.0,105230.0,0.08330052]
[1749882573686,1.46212399,105240.0,105230.0,0.0766177]
[1749882573885,1.46212399,105240.0,105230.0,0.08330052]
[1749882574118,1.46212399,105240.0,105230.0,0.05879683]
[1749882574320,1.46212399,105240.0,105230.0,0.06547965]
[1749882574659,1.46212399,105240.0,105230.0,0.08330051]
[1749882574866,1.46212399,105240.0,105230.0,0.06547965]
[1749882575066,1.46212399,105240.0,105230.0,0.08330051]
[1749882575240,1.46212399,105240.0,105230.0,0.05879683]
[1749882575463,1.46212399,105240.0,105230.0,0.06547965]
[1749882575689,1.46212399,105240.0,105230.0,0.07661769]
[1749882575942,1.46212399,105240.0,105230.0,0.08330051]
[1749882578160,1.46212399,105240.0,105230.0,0.0833005]
[1749882579013,1.46212399,105240.0,105230.0,0.07661768]
[1749882579430,1.46212399,105240.0,105230.0,0.0833005]
[1749882579672,1.46212399,105240.0,105230.0,0.05879683]
[1749882579880,1.46212399,105240.0,105230.0,0.0833005]
[1749882580938,1.46212399,105240.0,105230.0,0.05879683]
[1749882581299,1.46212399,105240.0,105230.0,0.06547964]
[1749882581496,1.46212399,105240.0,105230.0,0.07661768]
[1749882581724,1.46212399,105240.0,105230.0,0.08330049]
[1749882582077,1.46184399,105240.0,105230.0,0.08330047]
[1749882582366,1.46184399,105240.0,105230.0,0.05879683]
[1749882582668,1.46184399,105240.0,105230.0,0.08329999]
[1749882582802,1.46184399,105240.0,105230.0,0.27335985]
[1749882583466,1.46184399,105240.0,105230.0,0.08329999]
[1749882583904,1.46184399,105240.0,105230.0,0.27335985]
[1749882585456,1.46184399,105240.0,105230.0,0.24885669]
[1749882587794,1.46184399,105240.0,105230.0,0.20885669]
[1749882589280,1.46184399,105240.0,105230.0,0.01879683]
[1749882589898,0.97004522,105240.0,105230.0,0.20885669]
[1749882590101,1.46184399,105240.0,105230.0,0.20885669]
[1749882590827,1.46184399,105240.0,105230.0,0.24365669]
[1749882591407,1.46184399,105240.0,105230.0,0.05359683]
[1749882592020,1.46184399,105240.0,105230.0,0.24365669]
[1749882594253,1.46184399,105240.0,105230.0,0.05359683]
[1749882594494,1.18812399,105240.0,105230.0,0.05359683]
[1749882595286,1.18812399,105240.0,105230.0,0.24365669]
[1749882595431,1.18812399,105240.0,105230.0,0.05359683]
[1749882598723,1.46184399,105240.0,105230.0,0.05359683]
[1749882601318,1.49404765,105240.0,105230.0,0.05359683]
[1749882601526,1.98584642,105240.0,105230.0,0.05359683]
[1749882601733,1.49404765,105240.0,105230.0,0.01879683]
[1749882601939,1.98584642,105240.0,105230.0,0.01879683]
[1749882602573,1.98584642,105240.0,105230.0,0.03589683]
[1749882603297,1.98584642,105240.0,105230.0,0.01879683]
[1749882603519,1.73573706,105240.0,105230.0,0.01879683]
[1749882603724,1.92577886,105240.0,105230.0,0.01879683]
[1749882604374,1.64451934,105240.0,105230.0,0.01879683]
[1749882604983,1.15272057,105240.0,105230.0,0.03589683]
[1749882605189,1.15272057,105240.0,105230.0,0.05349683]
[1749882605394,0.6609218,105240.0,105230.0,0.05349683]
[1749882605606,1.15272057,105240.0,105230.0,0.05349683]
[1749882610864,0.6609218,105240.0,105230.0,0.24355669]
[1749882611065,1.15272057,105240.0,105230.0,0.24355669]
[1749882613833,1.15272057,105240.0,105230.0,0.25305968]
[1749882615063,1.15272057,105240.0,105230.0,0.24355669]
[1749882615295,1.45272057,105240.0,105230.0,0.24355669]
[1749882616153,1.45272057,105240.0,105230.0,0.25305968]
[1749882618690,1.45272057,105240.0,105230.0,0.24355669]
[1749882620075,1.45272057,105240.0,105230.0,0.25305968]
[1749882620685,1.45272057,105240.0,105230.0,0.24355669]
[1749882621087,1.45272057,105240.0,105230.0,0.25305968]
[1749882621530,1.45272057,105240.0,105230.0,0.24355669]
[1749882622682,1.45272057,105240.0,105230.0,0.25305968]
[1749882623787,1.45272057,105240.0,105230.0,0.24355669]
[1749882625631,1.45236057,105240.0,105230.0,0.25305968]
[1749882626071,1.45236057,105240.0,105230.0,0.24355669]
[1749882628247,1.45236057,105240.0,105230.0,0.25305968]
[1749882631736,1.45236057,105240.0,105230.0,0.24355669]
[1749882633695,1.45236057,105240.0,105230.0,0.05349683]
[1749882633894,1.45236057,105240.0,105230.0,0.24355669]
[1749882634031,1.45236057,105240.0,105230.0,0.05349683]
[1749882634232,1.45236057,105240.0,105230.0,0.24355669]
[1749882634428,1.25556057,105240.0,105230.0,0.24355669]
[1749882634635,1.45232057,105240.0,105230.0,0.24355669]
[1749882635177,1.45232057,105240.0,105230.0,0.05349683]
[1749882635897,1.45232057,105240.0,105230.0,0.24355669]
[1749882636320,1.45232057,105240.0,105230.0,0.05349683]
[1749882636944,1.45232057,105240.0,105230.0,0.24355669]
[1749882637772,1.45232057,105240.0,105230.0,0.05349683]
[1749882638576,1.17860057,105240.0,105230.0,0.05349683]
[1749882642191,0.98184057,105240.0,105230.0,0.05349683]
[1749882642397,1.17856057,105240.0,105230.0,0.05349683]
[1749882645395,1.17856057,105240.0,105230.0,0.07131724]
[1749882645700,0.98184057,105240.0,105230.0,0.07131724]
[1749882645896,1.17844057,105240.0,105230.0,0.07131724]
[1749882646659,1.17844057,105240.0,105230.0,0.07131705]
[1749882647844,1.17844057,105240.0,105230.0,0.07131704]
[1749882648183,0.6866418,105240.0,105230.0,0.07131704]
[1749882648388,1.17844057,105240.0,105230.0,0.07131704]
[1749882649324,1.17844057,105240.0,105230.0,0.07131705]
[1749882649709,0.98716267,105240.0,105230.0,0.07131705]
[1749882649838,1.17720447,105240.0,105230.0,0.07131705]
[1749882650088,1.17720447,105240.0,105230.0,0.07131704]
[1749882653366,1.17720447,105240.0,105230.0,0.07131706]
[1749882653732,1.17720447,105240.0,105230.0,0.07131707]
[1749882654474,1.17720447,105240.0,105230.0,0.07131706]
[1749882654771,1.17720447,105240.0,105230.0,0.07131704]
[1749882655015,0.6854057,105240.0,105230.0,0.07131704]
[1749882655222,1.17720447,105240.0,105230.0,0.07131704]
[1749882656569,1.17720447,105240.0,105230.0,0.07131703]
[1749882656957,1.17720447,105240.0,105230.0,0.07131702]
[1749882657658,1.17720447,105240.0,105230.0,0.07131701]
[1749882662068,1.17720447,105240.0,105230.0,0.07131716]
[1749882666917,0.97028693,105240.0,105230.0,0.07131716]
[1749882667816,0.87844057,105240.0,105230.0,0.07131716]
[1749882669882,0.87844057,105240.0,105230.0,0.06463453]
[1749882677363,1.15216057,105240.0,105230.0,0.06463453]
[1749882678695,1.45216057,105240.0,105230.0,0.0468142]
[1749882683964,0.9603618,105240.0,105230.0,0.0468142]
[1749882684253,1.45216057,105240.0,105230.0,0.06463354]
[1749882685445,1.94395934,105240.0,105230.0,0.02993354]
[1749882685681,2.04010856,105240.0,105230.0,0.03661619]
[1749882685890,2.04010856,105240.0,105230.0,0.03661557]
[1749882687061,1.94395934,105240.0,105230.0,0.0121142]
[1749882687272,1.94395934,105240.0,105230.0,0.03661502]
[1749882687670,1.94395934,105240.0,105230.0,0.0121142]
[1749882687875,1.94395934,105240.0,105230.0,0.05631502]
[1749882688729,1.94395934,105240.0,105230.0,0.03849624]
[1749882688990,1.94395934,105240.0,105230.0,0.05631502]
[1749882689597,1.94395934,105240.0,105230.0,0.07611502]
[1749882689895,1.94395934,105240.0,105230.0,0.05829624]
[1749882690109,1.94395934,105240.0,105230.0,0.06943298]
[1749882690316,1.94395934,105240.0,105230.0,0.0516142]
[1749882690469,1.94395934,105240.0,105230.0,0.05829624]
[1749882690701,1.94395934,105240.0,105230.0,0.07611513]
[1749882690878,2.04010856,105240.0,105230.0,0.07611513]
[1749882691080,1.78330897,105240.0,105230.0,0.07611513]
[1749882691472,1.78330897,105240.0,105230.0,0.0516142]
[1749882691677,1.78330897,105240.0,105230.0,0.07611529]
[1749882692598,1.78330897,105240.0,105230.0,0.07611522]
[1749882692831,1.78330897,105240.0,105230.0,0.06943313]
[1749882693282,1.78330897,105240.0,105230.0,0.07611522]
[1749882693475,1.78330897,105240.0,105230.0,0.05829629]
[1749882693719,1.78330897,105240.0,105230.0,0.06943206]
[1749882693925,1.78330897,105240.0,105230.0,0.05829589]
[1749882694134,1.78330897,105240.0,105230.0,0.06943206]
[1749882694336,1.78330897,105240.0,105230.0,0.07611375]
[1749882694494,1.78330897,105240.0,105230.0,0.07611367]
[1749882694695,1.78330897,105240.0,105230.0,0.07611364]
[1749882694897,1.78330897,105240.0,105230.0,0.05829586]
[1749882695317,1.78330897,105240.0,105230.0,0.07611364]
[1749882695514,1.78330897,105240.0,105230.0,0.07611353]
[1749882696087,1.78330897,105240.0,105230.0,0.0516142]
[1749882696294,1.78330897,105240.0,105230.0,0.07611353]
[1749882696524,1.78330897,105240.0,105230.0,0.0582958]
[1749882696711,1.78330897,105240.0,105230.0,0.06943181]
[1749882696842,1.87945819,105240.0,105230.0,0.07611341]
[1749882697274,1.87945819,105240.0,105230.0,0.0516142]
[1749882697478,1.87945819,105240.0,105230.0,0.07611351]
[1749882697674,1.87945819,105240.0,105230.0,0.07611332]
[1749882698030,1.87945819,105240.0,105230.0,0.07611329]
[1749882698430,1.87945819,105240.0,105230.0,0.06943172]
[1749882698640,1.87945819,105240.0,105230.0,0.07611325]
[1749882699057,1.87945819,105240.0,105230.0,0.05829573]
[1749882699290,1.87945819,105240.0,105230.0,0.07611315]
[1749882699485,1.87945819,105240.0,105230.0,0.06943152]
[1749882699696,1.87945819,105240.0,105230.0,0.07611301]
[1749882700510,1.87945819,105240.0,105230.0,0.06943142]
[1749882700831,1.87945819,105240.0,105230.0,0.03661287]
[1749882700954,1.87945819,105240.0,105230.0,0.01879569]
[1749882701166,1.87945819,105240.0,105230.0,0.036613]
[1749882701365,1.87945819,105240.0,105230.0,0.02993142]
[1749882701647,1.87945819,105240.0,105230.0,0.0121142]
[1749882701804,1.87945819,105240.0,105230.0,0.03661287]
[1749882701968,1.87945819,105240.0,105230.0,0.02993142]
[1749882702178,1.87945819,105240.0,105230.0,0.03661287]
[1749882702401,2.03513819,105240.0,105230.0,0.0121142]
[1749882702597,2.03513819,105240.0,105230.0,0.03661268]
[1749882703294,2.03513819,105240.0,105230.0,0.0187956]
[1749882703496,2.03513819,105240.0,105230.0,0.03661268]
[1749882703698,2.03513819,105240.0,105230.0,0.0187956]
[1749882703899,1.93898897,105240.0,105230.0,0.01879555]
[1749882704033,1.93898897,105240.0,105230.0,0.03661249]
[1749882704267,1.93898897,105240.0,105230.0,0.01879555]
[1749882704464,1.93898897,105240.0,105230.0,0.02993098]
[1749882704693,1.93898897,105240.0,105230.0,0.01879549]
[1749882704889,2.03513819,105240.0,105230.0,0.02993098]
[1749882705054,2.03513819,105240.0,105230.0,0.03661227]
[1749882705584,2.03513819,105240.0,105230.0,0.01879542]
[1749882705783,2.03513819,105240.0,105230.0,0.0121142]
[1749882706171,2.03513819,105240.0,105230.0,0.03661201]
[1749882706374,2.03513819,105240.0,105230.0,0.02993079]
[1749882706582,2.03513819,105240.0,105230.0,0.03661193]
[1749882706784,2.03513819,105240.0,105230.0,0.01879534]
[1749882706981,2.03513819,105240.0,105230.0,0.03661171]
[1749882707183,2.03513819,105240.0,105230.0,0.02993057]
[1749882707374,2.03513819,105240.0,105230.0,0.03661148]
[1749882707722,2.03513819,105240.0,105230.0,0.0121142]
[1749882707988,2.03513819,105240.0,105230.0,0.01879525]
[1749882708195,2.03513819,105240.0,105230.0,0.03661139]
[1749882708407,2.03513819,105240.0,105230.0,0.01879515]
[1749882708565,2.03513819,105240.0,105230.0,0.03661102]
[1749882708979,2.47137995,105240.0,105230.0,0.03661102]
[1749882709193,2.53428522,105240.0,105230.0,0.03661273]
[1749882709436,2.53428522,105240.0,105230.0,0.0121142]
[1749882710119,0.19956267,105230.0,105220.0,0.0381]
[1749882710331,1.25348833,105230.0,105220.0,0.06259916]
[1749882710537,1.25348833,105230.0,105220.0,0.06259881]
[1749882710749,1.25348833,105230.0,105220.0,0.06259117]
[1749882710974,1.25348833,105230.0,105220.0,0.06257117]
[1749882711170,1.25348833,105230.0,105220.0,0.05589722]
[1749882711314,1.25348833,105230.0,105220.0,0.06657117]
[1749882711513,1.25348833,105230.0,105220.0,0.06657052]
[1749882711796,1.34963755,105230.0,105220.0,0.0487733]
[1749882711987,1.34963755,105230.0,105220.0,0.06656878]
[1749882712542,1.34963755,105230.0,105220.0,0.06489344]
[1749882712725,1.34963755,105230.0,105220.0,0.07156598]
[1749882713112,1.34963755,105230.0,105220.0,0.07156592]
[1749882713311,1.34963755,105230.0,105220.0,0.07156589]
[1749882713644,2.41717808,105230.0,105220.0,0.009]
[1749882713801,1.94808038,105230.0,105220.0,0.009]
[1749882714448,1.94808038,105230.0,105220.0,0.005]
[1749882715023,1.92537931,105230.0,105220.0,0.005]
[1749882715230,0.20910494,105210.0,105200.0,0.11471794]
[1749882715485,0.74142371,105210.0,105200.0,0.12138935]
[1749882715776,0.74142371,105210.0,105200.0,0.13916949]
[1749882715932,0.74142371,105210.0,105200.0,0.12138654]
[1749882716133,0.74142371,105210.0,105200.0,0.11471794]
[1749882716336,0.74142371,105210.0,105200.0,0.12138654]
[1749882716568,0.74142371,105210.0,105200.0,0.13916949]
[1749882716725,0.74142371,105210.0,105200.0,0.12638654]
[1749882716948,0.74142371,105210.0,105200.0,0.14416949]
[1749882717156,0.74142371,105210.0,105200.0,0.13038654]
[1749882717407,0.74142371,105210.0,105200.0,0.14816949]
[1749882717577,0.74142371,105210.0,105200.0,0.14150089]
[1749882717804,0.74142371,105210.0,105200.0,0.14816949]
[1749882718216,0.78925867,105210.0,105200.0,0.07255155]
[1749882718421,0.78925867,105210.0,105200.0,0.06588295]
[1749882718620,0.78925867,105210.0,105200.0,0.07255155]
[1749882719214,0.78925867,105210.0,105200.0,0.0547686]
[1749882719427,0.78925867,105210.0,105200.0,0.0481]
[1749882719637,0.78925867,105210.0,105200.0,0.07255192]
[1749882719838,0.78925867,105210.0,105200.0,0.05476872]
[1749882720080,0.78925867,105210.0,105200.0,0.06588326]
[1749882720440,0.78925867,105210.0,105200.0,0.07255198]
[1749882720656,0.78925867,105210.0,105200.0,0.06188326]
[1749882721000,0.78925867,105210.0,105200.0,0.06855198]
[1749882721208,0.78925867,105210.0,105200.0,0.06188326]
[1749882721614,0.78925867,105210.0,105200.0,0.04576872]
[1749882721815,0.78925867,105210.0,105200.0,0.05688326]
[1749882722022,0.74142371,105210.0,105200.0,0.0391]
[1749882722233,0.74142371,105210.0,105200.0,0.04576872]
[1749882722440,0.74442371,105210.0,105200.0,0.06355198]
[1749882722649,0.74442371,105210.0,105200.0,0.05688326]
[1749882723070,0.74442371,105210.0,105200.0,0.0391]
[1749882723611,0.74442371,105210.0,105200.0,0.05692531]
[1749882723818,0.74442371,105210.0,105200.0,0.0391]
[1749882724028,0.74442371,105210.0,105200.0,0.0636098]
[1749882724486,0.84057293,105210.0,105200.0,0.0391]
[1749882724690,0.74442371,105210.0,105200.0,0.0636098]
[1749882724919,0.74442371,105210.0,105200.0,0.05692531]
[1749882725133,0.74442371,105210.0,105200.0,0.0636098]
[1749882725341,0.74442371,105210.0,105200.0,0.04578449]
[1749882725544,0.74442371,105210.0,105200.0,0.26322947]
[1749882725754,0.74442371,105210.0,105200.0,0.23871976]
[1749882725961,0.74442371,105210.0,105200.0,0.25654499]
[1749882726179,0.73491937,105210.0,105200.0,0.26322941]
[1749882726786,0.73491937,105210.0,105200.0,0.24540421]
[1749882726978,0.73491937,105210.0,105200.0,0.26322935]
[1749882727146,0.73491937,105210.0,105200.0,0.24540419]
[1749882727349,0.2431206,105210.0,105200.0,0.23871976]
[1749882727584,0.73491937,105210.0,105200.0,0.27273495]
[1749882727937,0.73491937,105210.0,105200.0,0.06643085]
[1749882728137,0.23361599,105210.0,105200.0,0.26322934]
[1749882728456,0.72541476,105210.0,105200.0,0.26322934]
[1749882728659,0.72541476,105210.0,105200.0,0.24540419]
[1749882728872,0.72541476,105210.0,105200.0,0.26322934]
[1749882729532,0.72541476,105210.0,105200.0,0.25654491]
[1749882729760,0.72541476,105210.0,105200.0,0.2631783]
[1749882730382,0.72541476,105210.0,105200.0,0.4187783]
[1749882730726,0.72541476,105210.0,105200.0,0.41210779]
[1749882730932,0.72541476,105210.0,105200.0,0.40099027]
[1749882731104,0.72541476,105210.0,105200.0,0.4187783]
[1749882731509,0.72541476,105210.0,105200.0,0.41210779]
[1749882731713,0.72541476,105210.0,105200.0,0.4187783]
[1749882732330,0.72541476,105210.0,105200.0,0.41210779]
[1749882732986,0.72541476,105210.0,105200.0,0.39431976]
[1749882733187,0.72541476,105210.0,105200.0,0.41210779]
[1749882733389,0.72541476,105210.0,105200.0,0.39431976]
[1749882733591,0.72541476,105210.0,105200.0,0.41210779]
[1749882734088,0.72541476,105210.0,105200.0,0.40099027]
[1749882734291,0.72541476,105210.0,105200.0,0.4187783]
[1749882734722,0.72541476,105210.0,105200.0,0.40099027]
[1749882734918,0.72541476,105210.0,105200.0,0.4187783]
[1749882735499,0.72541476,105210.0,105200.0,0.41210779]
[1749882735726,0.72541476,105210.0,105200.0,0.40099027]
[1749882735928,0.72541476,105210.0,105200.0,0.4187783]
[1749882736359,0.72541476,105210.0,105200.0,0.42828391]
[1749882737260,0.53531877,105210.0,105200.0,0.42828391]
[1749882737518,0.72541476,105210.0,105200.0,0.42828391]
[1749882737885,0.72541476,105210.0,105200.0,0.4216134]
[1749882738081,0.72541476,105210.0,105200.0,0.41049588]
[1749882738302,0.72541476,105210.0,105200.0,0.42828391]
[1749882738495,0.72541476,105210.0,105200.0,0.4216134]
[1749882738674,0.72541476,105210.0,105200.0,0.42828391]
[1749882738876,0.72541476,105210.0,105200.0,0.41049588]
[1749882739087,0.72541476,105210.0,105200.0,0.42828391]
[1749882739522,0.72541476,105210.0,105200.0,0.40382537]
[1749882739819,0.72541476,105210.0,105200.0,0.42828391]
[1749882739940,0.72541476,105210.0,105200.0,0.4187783]
[1749882740162,0.23361599,105210.0,105200.0,0.41210779]
[1749882740429,0.72541476,105210.0,105200.0,0.4187783]
[1749882740552,0.72541476,105210.0,105200.0,0.42165052]
[1749882740754,0.72541476,105210.0,105200.0,0.42833495]
[1749882741412,0.72541476,105210.0,105200.0,0.4105098]
[1749882741558,0.72541476,105210.0,105200.0,0.43784047]
[1749882742415,0.72541476,105210.0,105200.0,0.43784046]
[1749882742603,0.72541476,105210.0,105200.0,0.41333089]
[1749882742761,0.72541476,105210.0,105200.0,0.43115603]
[1749882742961,0.72541476,105210.0,105200.0,0.42001532]
[1749882743167,0.72541476,105210.0,105200.0,0.41333089]
[1749882743412,0.72541476,105210.0,105200.0,0.42001532]
[1749882743612,0.23361599,105210.0,105200.0,0.43784047]
[1749882743849,0.72541476,105210.0,105200.0,0.43784047]
[1749882744048,0.72541476,105210.0,105200.0,0.41333089]
[1749882744285,0.72541476,105210.0,105200.0,0.42001532]
[1749882744484,0.72541476,105210.0,105200.0,0.43784047]
[1749882745404,0.72541476,105210.0,105200.0,0.41333089]
[1749882745606,0.72541476,105210.0,105200.0,0.43784045]
[1749882745948,0.72541476,105210.0,105200.0,0.43115603]
[1749882746160,0.72541476,105210.0,105200.0,0.43784045]
[1749882746555,0.72541476,105210.0,105200.0,0.43115603]
[1749882746782,0.72541476,105210.0,105200.0,0.43784045]
[1749882747937,0.72541476,105210.0,105200.0,0.42001531]
[1749882748147,0.72541476,105210.0,105200.0,0.43784045]
[1749882748570,0.72541476,105210.0,105200.0,0.43115603]
[1749882748782,0.72541476,105210.0,105200.0,0.43784045]
[1749882749542,0.72541476,105210.0,105200.0,0.43115603]
[1749882749721,0.72541476,105210.0,105200.0,0.43784045]
[1749882749950,0.72541476,105210.0,105200.0,0.42001531]
[1749882750151,0.72541476,105210.0,105200.0,0.43115603]
[1749882750360,0.72541476,105210.0,105200.0,0.44734588]
[1749882751832,0.72541476,105210.0,105200.0,0.42952074]
[1749882752038,0.72541476,105210.0,105200.0,0.44734588]
[1749882752245,0.72541476,105210.0,105200.0,0.42952074]
[1749882752460,0.72541476,105210.0,105200.0,0.44734588]
[1749882752665,0.72541476,105210.0,105200.0,0.42952074]